bitfinex-derivatives/quotes_SOLF0:USTF0_20251210
["timestamp","ask_amount","ask_price","bid_price","bid_amount"]
[1765391911695,3.08,139.2,139.12,2.31]
[1765391912211,3.08,139.18,139.1,2.31]
[1765391912404,0.0486628,139.15,139.13,0.05006729]
[1765391912604,3.1286628,139.15,139.13,0.05006729]
[1765391912799,4.5686628,139.15,139.06,2.31]
[1765391913008,3.08,139.12,139.04,61.12]
[1765391913205,3.08,139.11,139.04,61.12]
[1765391913510,3.08,139.09,138.99,100.7263]
[1765391913707,11.97969928,139.08,139.01,6.4742]
[1765391913907,3.08,139.09,139.01,6.4742]
[1765391913908,0.05163027,139.06,139.03,2.35818673]
[1765391914105,0.05163027,139.06,139.03,0.04818673]
[1765391914415,0.05163027,139.06,139.04,2.31]
[1765391914810,0.05163027,139.06,139.04,8.7828]
[1765391915105,0.05163027,139.06,139.05,2.31]
[1765391915611,3.2,139.17,139.07,102.9798]
[1765391915807,3.2,139.15,139.05,100.6822]
[1765391916014,5.5083124,139.14,139.06,61.12]
[1765391916308,3.2,139.12,139.04,2.31]
[1765391916498,3.2,139.1,139.02,61.12]
[1765391916699,3.2,139.1,139.02,164.1723]
[1765391916898,3.2,139.1,139.04,100.6914]
[1765391917100,3.2,139.14,139.04,100.6914]
[1765391917311,8.71145306,139.13,139.04,100.6914]
[1765391917614,0.04616681,139.1,139.07,2.39832563]
[1765391917809,0.04616681,139.1,139.07,61.16832563]
[1765391918008,0.04616681,139.1,139.07,69.98972563]
[1765391918309,0.04616681,139.1,139.08,2.35]
[1765391918707,0.04616681,139.1,139.07,61.16832563]
[1765391918902,0.04616681,139.1,139.07,63.51832563]
[1765391919308,0.04616681,139.1,139.07,61.16832563]
[1765391919508,0.04616681,139.1,139.08,2.35]
[1765391919902,0.04616681,139.1,139.08,8.8209]
[1765391920101,0.04616681,139.1,139.09,2.35]
[1765391920319,3.2,139.15,139.07,61.16832563]
[1765391920620,3.2,139.15,139.07,63.47]
[1765391920912,5.52505501,139.14,139.07,63.47]
[1765391921210,0.04864893,139.12,139.07,63.47]
[1765391921412,6.54050696,139.22,139.12,2.3]
[1765391921717,8.7263963,139.21,139.13,61.12]
[1765391921904,107.09210696,139.24,139.14,2.3]
[1765391922117,5.52583471,139.23,139.14,2.3]
[1765391922312,0.048414,139.2,139.17,0.04668868]
[1765391922513,0.048414,139.2,139.17,2.34668868]
[1765391922708,0.048414,139.2,139.17,0.04668868]
[1765391923205,3.248414,139.2,139.17,0.04668868]
[1765391924115,3.248414,139.2,139.08,2.3]
[1765391924116,3.2,139.18,139.08,2.3]
[1765391924307,6.4671,139.17,139.09,67.5704]
[1765391924515,9.6671,139.17,139.09,67.5704]
[1765391924812,103.8129,139.15,139.04,100.6914]
[1765391925011,103.8357,139.12,139.04,2.35]
[1765391925210,0.0491717,139.09,139.07,0.04912566]
[1765391925607,3.2491717,139.09,139.07,0.04912566]
[1765391925805,0.0491717,139.09,139.07,0.04912566]
[1765391926018,0.0491717,139.09,139.07,2.39912566]
[1765391926318,3.2,139.18,139.09,2.3]
[1765391926506,5.55670494,139.17,139.1,8.77]
[1765391926704,9.6667,139.18,139.1,8.77]
[1765391927117,0.0462121,139.15,139.13,0.05471731]
[1765391928113,0.0462121,139.15,139.13,2.35471731]
[1765391928315,6.54050696,139.22,139.13,2.35471731]
[1765391928618,5.56199183,139.21,139.14,2.3]
[1765391928815,3.2,139.23,139.15,61.1]
[1765391929020,5.56179958,139.22,139.15,67.5677]
[1765391929315,0.04765961,139.2,139.17,0.04560835]
[1765391929520,3.24765961,139.2,139.17,0.04560835]
[1765391929718,8.77048259,139.19,139.17,0.04560835]
[1765391929918,3.2,139.19,139.17,0.04560835]
[1765391930222,5.57077523,139.18,139.17,0.04560835]
[1765391930822,0.04765961,139.2,139.17,0.04560835]
[1765391931024,5.57419854,139.19,139.17,0.04560835]
[1765391931221,8.77802268,139.18,139.12,61.1]
[1765391931422,3.2,139.16,139.08,61.1]
[1765391931622,3.2,139.16,139.08,69.9207]
[1765391931623,9.6678,139.16,139.08,69.9207]
[1765391931918,3.2,139.16,139.08,63.45]
[1765391932315,0.05090344,139.13,139.11,2.39688352]
[1765391932617,0.04694372,139.13,139.11,2.39688352]
[1765391933010,0.04694372,139.13,139.11,0.04688352]
[1765391934125,0.04694372,139.13,139.11,2.39688352]
[1765391935019,0.04694372,139.13,139.11,0.04688352]
[1765391935531,6.4672,139.17,139.11,8.86638352]
[1765391936221,5.38379993,139.16,139.11,8.86638352]
[1765391936422,5.38379993,139.16,139.11,0.04688352]
[1765391936423,3.24601239,139.15,139.11,0.04688352]
[1765391936620,0.04601239,139.15,139.11,0.04688352]
[1765391936818,0.04601239,139.15,139.11,2.34688352]
[1765391937820,0.04601239,139.15,139.13,2.3]
[1765391938016,6.64706815,139.21,139.13,2.3]
[1765391938212,112.8210094,139.23,139.13,2.3]
[1765391938213,11.82376632,139.2,139.13,8.7687]
[1765391938525,5.36032912,139.19,139.09,2.25]
[1765391938726,5.36032912,139.18,139.1,63.35]
[1765391938921,103.7775,139.2,139.1,63.35]
[1765391939124,0.05473595,139.16,139.14,0.05314365]
[1765391939730,0.05473595,139.16,139.14,2.30314365]
[1765391940529,6.64706815,139.24,139.16,2.25]
[1765391940833,5.36578007,139.23,139.17,8.7168]
[1765391941025,8.56578007,139.22,139.13,2.25]
[1765391941225,8.56578007,139.22,139.14,61.08]
[1765391941226,5.3655073,139.21,139.14,61.08]
[1765391941430,11.83083007,139.2,139.14,67.5483]
[1765391941626,0.05540351,139.18,139.16,2.29865617]
[1765391941820,0.05540351,139.18,139.16,0.04865617]
[1765391942020,3.25540351,139.18,139.16,0.04865617]
[1765391942423,3.25540351,139.18,139.11,2.25]
[1765391942623,109.16513895,139.17,139.07,2.25]
[1765391942824,8.56623895,139.16,139.08,61.08]
[1765391943020,8.56623895,139.16,139.03,2.25]
[1765391943021,6.469,139.13,139.03,2.25]
[1765391943222,9.669,139.13,139.04,63.33]
[1765391943421,0.04888522,139.1,139.07,2.3042838]
[1765391943827,3.24888522,139.1,139.07,0.0542838]
[1765391944028,103.89948522,139.1,139.04,61.08]
[1765391944233,3.21,139.09,139.04,61.08]
[1765391944437,0.04888522,139.1,139.04,63.33]
[1765391945135,0.04888522,139.1,139.06,2.30533766]
[1765391945636,0.04888522,139.1,139.06,109.86630368]
[1765391945839,0.04888522,139.1,139.07,2.25]
[1765391946029,3.21,139.17,139.09,2.2]
[1765391946231,3.21,139.17,139.09,63.28]
[1765391946438,3.21,139.15,139.07,6.4716]
[1765391946741,3.21,139.15,139.06,63.28]
[1765391947040,0.05305927,139.12,139.09,0.05284503]
[1765391947241,0.05305927,139.12,139.09,2.25284503]
[1765391947747,0.05305927,139.12,139.09,0.05284503]
[1765391948134,0.05305927,139.12,139.09,2.25284503]
[1765391949742,0.05305927,139.12,139.09,0.05284503]
[1765391950133,0.05305927,139.12,139.09,2.25284503]
[1765391950441,3.21,139.2,139.11,2.2]
[1765391950644,3.21,139.2,139.13,2.2]
[1765391950843,3.21,139.2,139.14,61.1]
[1765391951144,6.4649,139.22,139.14,67.5681]
[1765391951542,0.05494051,139.19,139.17,0.04739808]
[1765391952650,3.26494051,139.19,139.17,0.04739808]
[1765391952857,0.05494051,139.19,139.17,0.04739808]
[1765391953044,0.05494051,139.19,139.17,2.24739808]
[1765391953245,0.05494051,139.19,139.17,8.71419808]
[1765391953549,3.0,139.25,139.18,2.2]
[1765391953749,9.4636,139.25,139.18,2.2]
[1765391954654,0.04802011,139.23,139.2,0.04933235]
[1765391955152,0.04802011,139.23,139.2,2.24933235]
[1765391955552,0.04802011,139.23,139.22,2.2]
[1765391955756,3.0,139.25,139.22,2.2]
[1765391956054,3.0,139.25,139.23,8.664]
[1765391956261,3.0,139.25,139.21,63.28]
[1765391956454,3.0,139.25,139.22,2.2]
[1765391956658,3.02570077,139.25,139.24,2.2]
[1765391956957,3.22,139.31,139.24,2.2]
[1765391957152,3.22,139.31,139.23,0.05121841]
[1765391957153,3.29175725,139.32,139.25,2.2]
[1765391957357,3.29175725,139.32,139.26,61.08]
[1765391957945,3.22,139.31,139.28,0.04820113]
[1765391958254,3.22,139.3,139.28,0.04820113]
[1765391958655,6.51175725,139.32,139.28,0.04820113]
[1765391959463,3.22,139.31,139.28,0.04820113]
[1765391960159,3.29175725,139.32,139.28,2.24820113]
[1765391960744,103.6608,139.39,139.28,161.62410113]
[1765391961043,3.22,139.39,139.32,0.05352324]
[1765391961254,3.22,139.36,139.32,0.05352324]
[1765391961454,3.22,139.41,139.32,0.05352324]
[1765391961655,3.22,139.41,139.35,0.05141736]
[1765391961656,3.22,139.38,139.35,0.05141736]
[1765391962056,3.22,139.42,139.35,0.05141736]
[1765391962253,5.50997274,139.44,139.35,0.05141736]
[1765391962462,3.22,139.45,139.38,0.05473196]
[1765391962658,103.6238,139.44,139.38,0.05473196]
[1765391962850,3.22,139.44,139.38,0.05473196]
[1765391963356,3.22,139.46,139.38,0.05473196]
[1765391963557,3.22,139.45,139.41,0.05253597]
[1765391963955,107.26646602,139.47,139.41,0.05253597]
[1765391963956,3.22,139.48,139.41,0.05253597]
[1765391964165,103.5979,139.48,139.41,0.05253597]
[1765391964365,3.22,139.47,139.41,0.05253597]
[1765391964955,100.4065,139.44,139.41,0.05253597]
[1765391965155,3.22,139.44,139.41,0.05253597]
[1765391966750,10.10346602,139.46,139.41,0.05253597]
[1765391967064,3.22,139.45,139.41,0.05253597]
[1765391967271,3.22,139.43,139.41,0.05253597]
[1765391967964,3.22,139.41,139.3,107.38676602]
[1765391968167,3.22,139.41,139.31,61.02]
[1765391968962,9.6759,139.41,139.31,61.02]
[1765391969254,3.26778997,139.37,139.35,0.05024068]
[1765391969461,0.04778997,139.37,139.35,0.05024068]
[1765391969864,3.26778997,139.37,139.35,0.05024068]
[1765391970263,0.04778997,139.37,139.35,0.05024068]
[1765391971061,3.22,139.42,139.35,61.05024068]
[1765391971269,3.22,139.37,139.27,100.5255]
[1765391971574,3.22,139.37,139.28,100.5168]
[1765391971759,3.22,139.41,139.32,100.4897]
[1765391971966,3.22,139.41,139.33,100.4821]
[1765391972266,0.04560654,139.38,139.36,0.05340408]
[1765391973264,0.04560654,139.38,139.36,6.51150408]
[1765391973973,0.04560654,139.38,139.36,0.05340408]
[1765391975673,3.27560654,139.38,139.36,0.05340408]
[1765391975873,3.23,139.37,139.36,0.05340408]
[1765391976473,3.23,139.37,139.31,61.0]
[1765391976679,0.04560654,139.38,139.31,61.0]
[1765391977368,0.04560654,139.38,139.32,6.4598]
[1765391977573,3.27560654,139.38,139.33,0.05037546]
[1765391978472,0.04560654,139.38,139.33,0.05037546]
[1765391978882,3.27560654,139.38,139.33,0.05037546]
[1765391979466,3.23,139.36,139.33,0.05037546]
[1765391980170,0.04560654,139.38,139.33,0.05037546]
[1765391980678,3.27560654,139.38,139.33,0.05037546]
[1765391981382,3.23,139.35,139.33,0.05037546]
[1765391983780,3.23,139.35,139.25,100.538]
[1765391984278,3.23,139.33,139.27,6.4622]
[1765391984479,3.23,139.33,139.26,82.78153554]
[1765391984880,3.27628407,139.31,139.28,0.04919367]
[1765391985084,0.04628407,139.31,139.28,0.04919367]
[1765391985385,0.04628407,139.31,139.29,6.4612]
[1765391985778,0.04628407,139.31,139.29,67.4612]
[1765391986179,10.11346602,139.38,139.29,67.4612]
[1765391986180,3.23,139.38,139.33,6.4592]
[1765391986878,3.23,139.41,139.34,61.0]
[1765391987188,0.05258158,139.39,139.37,6.4576]
[1765391987577,0.05258158,139.39,139.36,0.05268997]
[1765391987779,0.05258158,139.39,139.36,6.51068997]
[1765391987979,0.05258158,139.39,139.36,0.05268997]
[1765391990686,3.28258158,139.39,139.36,0.05268997]
[1765391991889,3.23,139.37,139.36,0.05268997]
[1765391992287,0.05258158,139.39,139.36,0.05268997]
[1765391992481,3.28258158,139.39,139.36,0.05268997]
[1765391993386,0.05258158,139.39,139.36,0.05268997]
[1765391993786,3.28258158,139.39,139.36,0.05268997]
[1765391993992,0.05258158,139.39,139.36,0.05268997]
[1765391994199,3.28258158,139.39,139.36,0.05268997]
[1765391994793,3.23,139.37,139.36,0.05268997]
[1765391995385,3.33258158,139.39,139.36,0.05268997]
[1765391996287,3.28,139.37,139.36,0.05268997]
[1765391996594,3.28,139.36,139.32,61.0]
[1765391996982,6.4571,139.39,139.32,61.0]
[1765391997187,5.49561741,139.38,139.32,61.0]
[1765391997496,0.045827,139.36,139.34,6.51358092]
[1765392000689,0.045827,139.36,139.34,61.03458092]
[1765392001691,0.045827,139.36,139.34,67.49358092]
[1765392002196,0.045827,139.36,139.34,61.03458092]
[1765392002398,3.325827,139.36,139.34,0.05458092]
[1765392002583,8.72064691,139.35,139.34,0.00458092]
[1765392002788,3.28,139.34,139.24,21.06296099]
[1765392002990,3.28,139.32,139.21,100.5683]
[1765392003188,8.72064691,139.31,139.21,100.5683]
[1765392003390,3.28,139.28,139.17,100.5977]
[1765392003690,3.28,139.26,139.18,60.98]
[1765392003890,3.33372944,139.23,139.21,0.04979325]
[1765392004092,6.55664359,139.26,139.21,0.04979325]
[1765392004294,9.0649094,139.32,139.23,100.5484]
[1765392004496,3.18,139.33,139.24,60.98]
[1765392004683,3.18,139.32,139.24,60.98]
[1765392005290,3.23099886,139.29,139.27,0.04571605]
[1765392005487,3.23339891,139.29,139.27,0.04571605]
[1765392005790,3.18,139.26,139.17,161.5958]
[1765392006186,3.18,139.19,139.11,6.4695]
[1765392006386,3.18,139.18,139.08,100.6627]
[1765392006692,3.22519188,139.14,139.12,0.04959582]
[1765392006885,3.23339603,139.14,139.12,0.04959582]
[1765392007089,0.05339603,139.14,139.12,100.68379582]
[1765392007296,0.05339603,139.14,139.12,6.51859582]
[1765392007495,3.23339603,139.14,139.12,0.04959582]
[1765392007700,3.23339603,139.14,139.08,100.6631]
[1765392008004,3.23339603,139.14,139.07,6.4716]
[1765392008299,3.23339603,139.14,139.04,100.6923]
[1765392008509,3.18,139.14,139.04,100.6923]
[1765392008800,3.18,139.09,138.97,201.4784]
[1765392009015,3.18,139.02,138.94,21.31573024]
[1765392009195,3.18,139.01,138.94,21.31573024]
[1765392009389,3.18,139.01,138.95,100.7535]
[1765392009593,3.18,139.01,138.94,122.07663024]
[1765392009808,3.18,138.98,138.96,0.04831551]
[1765392010100,3.18,138.98,138.9,165.1408]
[1765392010101,3.22895362,138.98,138.9,61.02]
[1765392010294,3.22895362,138.98,138.88,100.8081]
[1765392010295,3.22895362,138.98,138.88,107.2886]
[1765392010496,3.18,138.96,138.88,100.8039]
[1765392010695,3.18,138.96,138.89,100.7951]
[1765392010900,3.18,138.96,138.89,100.7982]
[1765392011102,3.23483424,138.94,138.91,0.04540562]
[1765392012499,100.735,138.99,138.91,0.04540562]
[1765392012500,3.15,138.99,138.93,100.7681]
[1765392012697,3.15,138.99,138.91,161.8433]
[1765392012906,3.15,139.04,138.93,100.7688]
[1765392013104,3.15,139.04,138.94,100.762]
[1765392013493,0.04557586,139.0,138.98,0.05285987]
[1765392013896,3.19557586,139.0,138.98,0.05285987]
[1765392014498,3.15,138.99,138.93,61.06]
[1765392015507,0.04557586,139.0,138.95,0.04686222]
[1765392015808,3.19557586,139.0,138.95,0.04686222]
[1765392016110,0.04557586,139.0,138.96,3.34]
[1765392016502,0.04557586,139.0,138.97,62.0]
[1765392016700,0.04557586,139.0,138.95,3.38686222]
[1765392017009,3.19557586,139.0,138.95,0.04686222]
[1765392017412,0.04557586,139.0,138.95,3.38686222]
[1765392017908,3.19557586,139.0,138.95,0.04686222]
[1765392018205,3.15,138.99,138.95,0.04686222]
[1765392018504,3.15,138.96,138.87,3.34]
[1765392018708,3.15,139.0,138.89,3.34]
[1765392018904,3.15,139.0,138.89,104.1348]
[1765392019105,3.15,139.0,138.91,15.2900251]
[1765392019309,3.15,139.0,138.91,116.0727251]
[1765392019509,0.05015197,138.97,138.94,0.05467203]
[1765392019902,3.20015197,138.97,138.94,0.05467203]
[1765392021306,3.15,138.96,138.87,3.34]
[1765392021711,3.15,138.96,138.89,15.2900251]
[1765392021906,100.72,139.01,138.9,61.12]
[1765392022114,3.15,138.99,138.9,61.12]
[1765392022409,3.15,138.95,138.86,140.75766617]
[1765392022612,3.15,138.92,138.86,140.75766617]
[1765392022908,3.15,138.91,138.86,140.75766617]
[1765392023511,3.19602,138.9,138.87,0.05324887]
[1765392023704,0.04602,138.9,138.87,0.05324887]
[1765392024408,3.15,138.89,138.81,100.8591]
[1765392024608,3.15,138.89,138.78,165.3572]
[1765392024915,3.15,138.88,138.78,165.3572]
[1765392025113,3.15,138.87,138.78,64.48]
[1765392025413,3.15,138.83,138.73,61.14]
[1765392025802,3.15,138.83,138.75,100.9027]
[1765392026016,3.15,138.83,138.76,100.8936]
[1765392026218,3.15,138.83,138.77,6.4856]
[1765392026512,0.05351967,138.81,138.79,0.04632619]
[1765392027124,3.15,138.88,138.79,104.25792619]
[1765392027323,3.15,138.88,138.8,100.8664]
[1765392027614,3.15,138.88,138.81,67.6434]
[1765392027815,3.15,138.88,138.79,166.2116]
[1765392028114,3.20468246,138.85,138.82,0.0455294]
[1765392028319,0.05468246,138.85,138.82,0.0455294]
[1765392028706,3.20468246,138.85,138.82,0.0455294]
[1765392029019,3.15,138.83,138.75,3.34]
[1765392029217,3.15,138.83,138.75,9.8261]
[1765392029413,103.9665,138.87,138.77,3.34]
[1765392029921,0.04806019,138.83,138.81,0.04713474]
[1765392030308,3.19806019,138.83,138.81,0.04713474]
[1765392030505,0.04806019,138.83,138.81,0.04713474]
[1765392031515,3.19806019,138.83,138.81,0.04713474]
[1765392031717,6.53086019,138.83,138.81,0.04713474]
[1765392032020,107.37596019,138.83,138.81,0.04713474]
[1765392032315,110.52596019,138.83,138.81,0.04713474]
[1765392032507,3.15,138.82,138.81,0.04713474]
[1765392032913,6.484,138.81,138.75,61.18]
[1765392033112,3.15,138.82,138.75,64.52]
[1765392033313,100.8406,138.84,138.75,64.52]
[1765392033519,6.4838,138.81,138.75,64.52]
[1765392033914,0.05331554,138.79,138.77,0.05270283]
[1765392034114,0.05331554,138.79,138.77,3.09270283]
[1765392034516,0.05331554,138.79,138.77,0.05270283]
[1765392035817,3.10331554,138.79,138.77,0.05270283]
[1765392036121,103.97801554,138.79,138.77,0.00270283]
[1765392036310,110.46301554,138.79,138.77,0.00270283]
[1765392036517,0.05331554,138.79,138.77,3.04270283]
[1765392037023,0.05331554,138.79,138.77,0.00270283]
[1765392037215,6.4852,138.78,138.77,0.00270283]
[1765392037615,9.5352,138.78,138.77,0.00270283]
[1765392037814,6.487,138.75,138.7,3.04]
[1765392038320,100.895,138.77,138.7,3.04]
[1765392038321,100.9006,138.76,138.7,3.04]
[1765392038620,3.05,138.78,138.7,3.04]
[1765392038823,0.05212699,138.75,138.7,3.04]
[1765392039117,0.05212699,138.75,138.71,65.04]
[1765392039320,0.05212699,138.75,138.67,6.33175725]
[1765392039321,100.9108,138.74,138.67,6.33175725]
[1765392039520,0.04567028,138.72,138.68,3.04]
[1765392039723,0.04567028,138.72,138.67,3.29175725]
[1765392039724,3.09567028,138.72,138.67,3.29175725]
[1765392039922,6.4887,138.71,138.67,3.29175725]
[1765392040123,3.09567028,138.72,138.67,6.33175725]
[1765392040317,3.09567028,138.72,138.67,3.29175725]
[1765392040722,3.09567028,138.72,138.67,6.33175725]
[1765392040922,0.04567028,138.72,138.68,3.04]
[1765392041128,0.04567028,138.72,138.68,64.26]
[1765392041330,0.04567028,138.72,138.69,3.04]
[1765392042024,0.04567028,138.72,138.67,6.33175725]
[1765392042324,3.09567028,138.72,138.67,3.29175725]
[1765392042822,0.04567028,138.72,138.68,3.04]
[1765392043523,0.04567028,138.72,138.69,3.04]
[1765392044932,0.04567028,138.72,138.69,61.24]
[1765392045120,0.04567028,138.72,138.67,6.33175725]
[1765392045428,3.09567028,138.72,138.67,67.57175725]
[1765392045629,3.09567028,138.72,138.67,3.29175725]
[1765392045630,3.05,138.69,138.67,3.29175725]
[1765392045827,3.05,138.69,138.59,3.04]
[1765392045828,3.05,138.65,138.59,3.04]
[1765392046126,0.05177003,138.65,138.59,3.04]
[1765392046319,0.05177003,138.65,138.63,146.54586048]
[1765392046525,0.05177003,138.65,138.64,3.04]
[1765392047718,0.05177003,138.65,138.63,143.50586048]
[1765392048119,3.10177003,138.65,138.63,143.50586048]
[1765392048326,9.59327003,138.65,138.63,143.50586048]
[1765392048829,0.05177003,138.65,138.63,146.54586048]
[1765392049530,3.10177003,138.65,138.63,143.50586048]
[1765392050643,105.4736,138.64,138.54,3.04]
[1765392050840,101.06577669,138.6,138.54,3.04]
[1765392051034,101.06577669,138.6,138.47,101.1038]
[1765392051035,101.0306,138.58,138.5,3.04]
[1765392051338,0.05339184,138.55,138.49,3.04]
[1765392051532,0.05465101,138.53,138.51,9.5375]
[1765392051730,0.05062918,138.53,138.48,61.26]
[1765392051930,0.05062918,138.53,138.49,3.04]
[1765392052130,0.05062918,138.53,138.47,61.28]
[1765392052325,0.04635252,138.51,138.48,3.04]
[1765392052929,0.04635252,138.51,138.44,3.04]
[1765392053136,101.0928,138.49,138.4,3.04]
[1765392053332,101.1244,138.45,138.4,3.04]
[1765392053541,101.1244,138.45,138.38,21.62307233]
[1765392053542,101.1447,138.42,138.38,21.62307233]
[1765392053746,6.5031,138.4,138.35,61.28]
[1765392054138,0.04857578,138.39,138.35,61.28]
[1765392054442,0.04857578,138.39,138.32,64.32]
[1765392054944,101.21417578,138.39,138.31,3.33693481]
[1765392055140,107.6944,138.36,138.31,3.33693481]
[1765392055339,0.05496149,138.35,138.31,3.33693481]
[1765392055637,0.05496149,138.35,138.31,6.37693481]
[1765392056034,0.05496149,138.35,138.32,3.04]
[1765392056742,0.05496149,138.35,138.31,6.37693481]
[1765392056944,0.05496149,138.35,138.31,3.33693481]
[1765392057743,107.7085,138.34,138.31,3.33693481]
[1765392058149,101.25156149,138.35,138.31,3.33693481]
[1765392058351,0.05496149,138.35,138.31,6.37693481]
[1765392058652,0.05496149,138.35,138.32,3.04]
[1765392058848,0.05496149,138.35,138.31,3.33693481]
[1765392059048,0.05496149,138.35,138.31,6.37693481]
[1765392059238,0.05496149,138.35,138.31,3.33693481]
[1765392060141,107.7082,138.34,138.31,3.33693481]
[1765392060347,6.5058,138.34,138.31,3.33693481]
[1765392060543,101.2138,138.33,138.31,3.481e-05]
[1765392060745,101.2316,138.3,138.22,3.04]
[1765392060950,0.05149935,138.27,138.23,3.04]
[1765392061657,101.2025,138.34,138.24,3.04]
[1765392061852,101.2108,138.33,138.24,3.04]
[1765392062052,101.2123,138.33,138.24,3.04]
[1765392062254,101.2174,138.32,138.24,3.04]
[1765392062448,108.18267446,138.32,138.24,3.04]
[1765392062660,0.05402105,138.29,138.27,0.05343392]
[1765392062948,101.29562105,138.29,138.27,0.05343392]
[1765392063152,101.2606,138.26,138.2,3.04]
[1765392063458,101.2687,138.25,138.18,201.4917992]
[1765392063653,101.2937,138.22,138.12,64.42]
[1765392063954,101.3196,138.18,138.12,3.04]
[1765392064154,0.04602715,138.16,138.12,3.04]
[1765392064364,108.23397446,138.25,138.14,3.17]
[1765392064657,107.7791,138.25,138.15,3.17]
[1765392065259,107.7869,138.24,138.15,3.17]
[1765392065455,101.3047,138.2,138.18,0.05093329]
[1765392065658,6.5149,138.15,138.06,3.17]
[1765392065955,108.33597446,138.11,138.02,3.17]
[1765392066160,6.96527446,138.11,138.02,3.17]
[1765392066365,6.518,138.09,138.02,3.17]
[1765392066656,0.05258195,138.07,138.02,65.17]
[1765392066852,0.05258195,138.07,138.03,3.17]
[1765392067252,6.96527446,138.17,138.07,3.17]
[1765392067450,101.3068,138.2,138.09,3.17]
[1765392067451,108.27207446,138.2,138.09,3.17]
[1765392067655,101.3046,138.2,138.1,3.17]
[1765392067850,101.3123,138.19,138.1,3.17]
[1765392068057,6.5137,138.18,138.1,3.17]
[1765392068259,0.05010162,138.15,138.13,3.21838494]
[1765392068449,0.05010162,138.15,138.13,0.04838494]
[1765392069155,101.39230162,138.15,138.13,0.04838494]
[1765392069557,101.3557,138.14,138.08,3.17]
[1765392069865,101.3557,138.14,138.05,64.62]
[1765392070161,101.3962,138.08,138.01,3.18]
[1765392070353,101.4012,138.07,137.95,3.38211237]
[1765392070556,101.4301,138.03,137.95,3.38211237]
[1765392070759,101.4608,137.99,137.95,3.27289633]
[1765392071068,101.453,138.0,137.85,184.60064841]
[1765392071069,101.4905,137.95,137.87,144.14439051]
[1765392071254,101.4744,137.97,137.88,3.18]
[1765392071255,0.05512816,137.92,137.88,3.18]
[1765392071462,0.05512816,137.92,137.88,104.7171]
[1765392071763,101.4742,137.97,137.89,3.18]
[1765392071967,101.5007,137.94,137.85,3.18]
[1765392072270,101.5136,137.92,137.82,64.66]
[1765392072567,101.5522,137.87,137.77,3.18]
[1765392072770,101.572,137.84,137.72,6.60854486]
[1765392072966,61.48,137.83,137.73,3.18]
[1765392073160,61.48,137.83,137.77,0.05305334]
[1765392073360,0.05273973,137.79,137.77,0.05305334]
[1765392073565,163.0375,137.86,137.77,3.23305334]
[1765392073768,163.0375,137.86,137.77,3.18]
[1765392073970,101.5575,137.86,137.77,3.18]
[1765392074156,101.5738,137.84,137.73,126.66]
[1765392074362,101.5934,137.81,137.73,3.18]
[1765392074562,163.1013,137.8,137.72,3.42854486]
[1765392074765,0.05270627,137.78,137.76,3.23005814]
[1765392074966,101.5795,137.83,137.76,3.23005814]
[1765392075469,101.5795,137.83,137.76,0.05005814]
[1765392075470,0.05407355,137.81,137.76,0.05005814]
[1765392075665,0.05407355,137.81,137.78,3.18]
[1765392075868,101.529,137.9,137.8,3.18]
[1765392076060,61.52,137.92,137.82,3.18]
[1765392076263,101.5362,137.89,137.77,111.3299]
[1765392076461,18.80247167,137.87,137.78,3.18]
[1765392076666,80.34247167,137.87,137.78,3.18]
[1765392076873,0.05027832,137.84,137.81,0.05537724]
[1765392077174,101.5797,137.83,137.81,0.05537724]
[1765392077569,108.1096,137.83,137.81,0.05537724]
[1765392077872,0.05027832,137.84,137.81,0.05537724]
[1765392078069,0.05027832,137.84,137.81,3.23537724]
[1765392078373,163.0748,137.92,137.81,3.23537724]
[1765392078576,163.0748,137.92,137.81,3.18]